Cogmind - Beta 12 @@@ ROGUE MODE // 2023.04.14 @ 20:19:53 Player: Inkie Result: Self-destructed Performance ------------- Evolutions (1) 500 Regions Visited (2) 400 Robots Destroyed (27) 135 Value Destroyed (672) 672 Prototype IDs (0) 0 Alien Tech Used (0) 0 Bonus (30) 30 TOTAL SCORE: 1737 Bonus ------- High Alert Combat Kills 30 Cogmind --------- Core Integrity 287/400 Matter 206/300 Energy 265/265 System Corruption 5% Temperature Warm (121) Movement Treading (240) Ox1 Location -9/Materials Parts ------- > --- POWER (1) -------- Reinforced Ion Engine > --- PROPULSION (2) --- Light Treads Light Treads > --- UTILITY (4) ------ Heat Sink High-capacity Storage Unit Light Armor Plating > --- WEAPON (2) ------- Small Laser Mining Claw > --- INVENTORY (20) --- Light Treads Light Treads Aluminum Leg Cooling System Rocket Launcher Peak State ------------ > --- POWER ------------ Reinforced Ion Engine > --- PROPULSION ------- Light Treads Light Treads > --- UTILITY ---------- Heat Sink High-capacity Storage Unit Light Armor Plating > --- WEAPON ----------- Small Laser Rocket Launcher > --- INVENTORY -------- Aluminum Leg Mining Claw [Rating: 10] Favorites ----------- Power Light Ion Engine Engine Light Ion Engine Propulsion Light Treads Treads Light Treads Utility High-capacity Storage Unit Device Heat Sink Storage High-capacity Storage Unit Protection Light Armor Plating Weapon Medium Laser Energy Gun Medium Laser Launcher Grenade Launcher Slashing Weapon Mining Claw Build | -11 -10 -9 ------- Run | Jun Mat Mat Slots Evolved 2 | . . 2 Power . | . . . Propulsion . | . . . Utility 2 | . . 2 Weapon . | . . . Parts Attached 30 | 6 11 13 Power 4 | 1 2 1 Engine 4 | 1 2 1 Core . | . . . Reactor . | . . . Propulsion 8 | 2 2 4 Treads 8 | 2 2 4 Leg . | . . . Wheel . | . . . Hover . | . . . Flight . | . . . Utility 5 | 1 1 3 Device 1 | . . 1 Storage 2 | 1 1 . Processor . | . . . Hackware . | . . . Protection 2 | . . 2 Artifact . | . . . Weapon 13 | 2 6 5 Energy Gun 8 | 2 5 1 Energy Cannon . | . . . Ballistic Gun . | . . . Ballistic Cannon . | . . . Launcher 2 | . . 2 Special Weapon . | . . . Impact Weapon . | . . . Slashing Weapon 3 | . 1 2 Piercing Weapon . | . . . Special Melee Weapon . | . . . Unidentified Prototypes . | . . . Parts Lost 10 | . 4 6 Power 2 | . 1 1 Propulsion 2 | . 1 1 Utility 1 | . . 1 Weapon 5 | . 2 3 Highest Loss Streak 3 | . 3 3 To Critical Strikes . | . . . Average Slot Usage (%) 72 | . 71 75 Engine 8 | . 8 9 Treads 20 | . 20 18 Device 2 | . . 7 Storage 13 | . 14 11 Protection 2 | . . 7 Energy Gun 20 | . 24 12 Launcher 1 | . . 4 Slashing Weapon 3 | . 3 4 Naked Turns . | . . . Heaviest Build 59 | 12 47 59 Greatest Support 40 | 40 40 40 Greatest Overweight (x) 2 | . 2 2 Average Overweight (x) 1 | . 1 1 Largest Inventory Capacity 20 | 8 20 20 Average Capacity 18 | 6 18 20 Most Carried 5 | 1 3 5 Average Carried 2 | . 2 2 Final Capacity 20 | 8 20 20 Final Carried 5 | 1 3 5 Class Distribution -------------------- 75% | Mutant 24% | Scavenger-Mutant Dominant Class ---------------- Mutant | -10/Materials Scavenger-Mutant | -9/Materials Resources | -11 -10 -9 ----------- Run | Jun Mat Mat Matter Collected 592 | 214 121 257 Remotely . | . . . Salvage Created 623 | . 230 393 Parts 50 | . 19 31 Haulers Intercepted 1 | . 1 . Recyclers Shooed . | . . . Parts Field Recycled . | . . . Retrieved Matter . | . . . Parts Self-Destructed . | . . . Prevented . | . . . Kills | -11 -10 -9 ------- Run | Jun Mat Mat Combat Hostiles Destroyed 22 | . 7 15 Melee 2 | . 1 1 Guns 7 | . 6 1 AOE 13 | . . 13 Classes Destroyed 8 | . 4 4 Builder 1 | . . 1 Tunneler 1 | . . 1 Hauler 1 | . 1 . Operator 2 | . 1 1 Swarmer 8 | . 5 3 Grunt 11 | . 2 9 Brawler 1 | . . 1 Sentry 2 | . . 2 Best Kill Streak 10 | . 3 10 Combat Bots Only 8 | . 3 8 Max Kills in Single Turn 2 | . 2 2 Gunslinging 1 | . 1 . Exploded 2 | . . 2 Melee 1 | . 1 1 Uniques/NPCs Destroyed . | . . . Combat | -11 -10 -9 -------- Run | Jun Mat Mat Damage Taken 1360 | . 584 776 Core 241 | . 128 113 Absorbed by Shields . | . . . Core Remaining (%) 74 | 100 48 . Volleys Fired 58 | . 25 33 Largest 2 | . 2 2 Hottest 100 | . 100 100 Shots Fired 82 | . 47 35 Gun 61 | . 47 14 Cannon . | . . . Launcher 21 | . . 21 Special . | . . . Kinetic . | . . . Thermal 51 | . 37 14 Explosive 21 | . . 21 Electromagnetic 10 | . 10 . Robot Hit Streak 7 | . 7 6 Robot Miss Streak 3 | . 2 3 Penetration Max . | . . . Secondary Targets 2 | . 2 . Max Gunslinging Chain 1 | . 1 . Shots Hit Robots 55 | . 32 23 Core Hits 41 | . 13 28 Critical Kills . | . . . Critical Parts Destroyed . | . . . Critical Strikes 3 | . 2 1 Burn 2 | . 1 1 Corrupt 1 | . 1 . Melee Attacks 11 | . 5 6 Impact . | . . . Slashing 11 | . 5 6 Piercing . | . . . Sneak Attacks 1 | . . 1 Combat Hostiles . | . . . Follow-up Attacks . | . . . Damage Inflicted 1710 | . 448 1262 Guns 461 | . 352 109 Cannons . | . . . Explosions 998 | . . 998 Melee 248 | . 93 155 Ramming 3 | . 3 . Kinetic . | . . . Thermal 360 | . 251 109 Explosive 998 | . . 998 Electromagnetic 101 | . 101 . Impact . | . . . Slashing 248 | . 93 155 Piercing . | . . . Highest Corruption 5 | . . 5 Average Corruption 5 | . . 5 Corruption Purged . | . . . Corruption Blocked . | . . . Effects 13 | . . 13 Message Errors 2 | . . 2 Matter Fused 4 | . . 4 Heat Flow Errors 3 | . . 3 Data Loss (minor) 1 | . . 1 Alerts 1 | . . 1 Weapon Failures 2 | . . 2 Overload Shots . | . . . Overflow Damage 9 | . 9 . Projectiles . | . . . Explosions . | . . . Melee 9 | . 9 . Knockbacks . | . . . Impact . | . . . Kinetic . | . . . Secondary . | . . . Self-Inflicted Damage 92 | . . 92 Shots 4 | . . 4 Rammed 1 | . 1 . Targets Rammed 1 | . 1 . Kicked . | . . . Crushed . | . . . Highest Temperature 327 | . 327 268 Average Temperature 99 | . 104 89 Received Heat Transfer 438 | . 159 279 Effects 2 | . 2 . Shutdowns 1 | . 1 . Energy Bleed 1 | . 1 . Siege Activations . | . . . Robots Corrupted . | . . . Combat Hostiles . | . . . Parts Fried . | . . . Impact Corruptions . | . . . Robots Melted . | . . . Combat Hostiles . | . . . Parts Melted 3 | . 1 2 Heat Transferred 1197 | . 814 383 Parts Sabotaged . | . . . Parts Stolen . | . . . Parts Stripped . | . . . Power Chain Reactions . | . . . Missiles Intercepted . | . . . Alert | -11 -10 -9 ------- Run | Jun Mat Mat Peak Influence 506 | . 96 506 Initial 20 | . . 20 Average 97 | . 30 238 Maximum Alert Level 2 | . . 2 Low Security (%) 80 | 100 100 40 Level 1 11 | . . 35 Level 2 7 | . . 23 Level 3 . | . . . Level 4 . | . . . Level 5 . | . . . High Security . | . . . Max Security . | . . . Squads Dispatched 4 | . 1 3 Investigation 1 | . 1 . Extermination . | . . . Reinforcement 3 | . . 3 Assault . | . . . Garrison . | . . . Intercept . | . . . Searches Triggered . | . . . Construction Impeded 1 | . . 1 Haulers Reinforced . | . . . Active Scanning Responses . | . . . Cargo Convoy Interrupts . | . . . Stealth | -11 -10 -9 --------- Run | Jun Mat Mat Distress Signals 1 | . 1 . Communications Jammed . | . . . Distress Signals . | . . . Times Spotted 37 | . 19 18 Peak Tracking Total 4 | . 4 4 Tactical Retreats . | . . . Traps | -11 -10 -9 ------- Run | Jun Mat Mat Traps Triggered 3 | . 3 . Indirectly . | . . . Trap Hack Attempts . | . . . Triggered . | . . . Disarmed . | . . . Reprogrammed . | . . . Reused . | . . . Traps Extracted . | . . . Installed . | . . . Triggered . | . . . Machines | -11 -10 -9 ---------- Run | Jun Mat Mat Machines Disabled 2 | . . 2 Max in Single Turn 1 | . . 1 Machines Repaired . | . . . Machines Sabotaged . | . . . Overloaded Fab Kills . | . . . Hacking | -11 -10 -9 --------- Run | Jun Mat Mat Machines Accessed 6 | . 5 1 Terminals 6 | . 5 1 Fabricators . | . . . Repair Stations . | . . . Recycling Units . | . . . Scanalyzers . | . . . Garrison Access . | . . . Total Hacks 11 | . 8 3 Successful 3 | . 1 2 Failed 8 | . 7 1 Catastrophic 2 | . 2 . Database Lockouts . | . . . Manual 11 | . 8 3 Terminals 11 | . 8 3 Fabricators . | . . . Repair Stations . | . . . Recycling Units . | . . . Scanalyzers . | . . . Garrison Access . | . . . Terminal Hacks . | . . . Fabricator Hacks . | . . . Repair Station Hacks . | . . . Recycling Unit Hacks . | . . . Scanalyzer . | . . . Garrison Access Hacks . | . . . Unauthorized Hacks 3 | . 1 2 Terminals 3 | . 1 2 Botnet 1 | . . 1 Operators 2 | . 1 1 Fabricators . | . . . Repair Stations . | . . . Recycling Units . | . . . Scanalyzers . | . . . Garrison Access . | . . . Data Cores Recovered 1 | . 1 . Used . | . . . Hacking Detections 5 | . 4 1 Full Trace Events 1 | . 1 . Feedback Events . | . . . Feedback Blocked . | . . . Robot Schematics Acquired . | . . . Robots Built . | . . . Authchips . | . . . Time . | . . . Total Robot Build Rating . | . . . Part Schematics Acquired . | . . . Parts Built . | . . . Authchips . | . . . Time . | . . . Total Part Build Rating . | . . . Parts Repaired . | . . . Time . | . . . Parts Recycled . | . . . Recycled Matter . | . . . Retrieved Matter . | . . . Retrieved Components . | . . . Parts Scanalyzed . | . . . Part Schematics Acquired . | . . . Parts Damaged . | . . . Bothacking | -11 -10 -9 ------------ Run | Jun Mat Mat Used RIF Installer . | . . . Robots Hacked . | . . . Non-combat . | . . . Combat . | . . . Robot Hacks Applied . | . . . Relay Couplers Released . | . . . Fabnet Peak Effective % . | . . . Robots Rewired . | . . . Allies Hacked . | . . . Hacks Repelled . | . . . Allies | -11 -10 -9 -------- Run | Jun Mat Mat Total Allies . | . . . Largest Group . | . . . Highest-Rated Group . | . . . Highest-Rated Ally . | . . . Total Orders . | . . . Ally Attacks . | . . . Total Damage . | . . . Kills . | . . . Allies Corrupted . | . . . Allies Melted . | . . . Intel | -11 -10 -9 ------- Run | Jun Mat Mat Robot Analysis Total . | . . . Derelict Logs Recovered . | . . . Drone Launches . | . . . Drone Recoveries . | . . . Exploration | -11 -10 -9 ------------- Run | Jun Mat Mat Turns Passed 1593 | 70 1004 519 Spaces Moved 545 | 40 348 157 Core 3 | 3 . . Treads 542 | 37 348 157 Legs . | . . . Wheels . | . . . Hover . | . . . Flight . | . . . Fastest Speed 50 | 50 160 240 Average Speed 245 | 151 251 255 Slowest Speed 320 | 160 320 320 Overloaded Moves . | . . . Propulsion Burnouts . | . . . Robots Hopped . | . . . Cave-ins Triggered . | . . . Exploration Rate (%) 31 | 4 70 21 Regions Visited 2 Branch Regions . Pre-discovered Areas . | . . . Known Exits Taken . | . . . Unknown Exits Taken 2 | 1 1 . Scrap Searched . | . . . Spaces Dug . | . . . Terrain Destroyed 73 | . . 73 Melee . | . . . Projectile . | . . . AOE 73 | . . 73 Terrain Rammed . | . . . Walls Destroyed . | . . . Machines Disabled . | . . . Actions | -11 -10 -9 --------- Run | Jun Mat Mat Total 683 | 46 417 220 Wait 30 | . 23 7 Move 543 | 39 347 157 Hop . | . . . Pick Up 8 | 1 3 4 Fast Attach 20 | 6 9 5 Attach 6 | . 2 4 Detach 1 | . 1 . Swap 4 | . . 4 Drop 1 | . 1 . Fire 58 | . 25 33 Melee 11 | . 5 6 Ram . | . . . Kick . | . . . Crush 1 | . 1 . Escape Stasis . | . . . Rewire . | . . . Trap . | . . . Miscellaneous . | . . . Route ------- -11/Junkyard -10/Materials (discovered 3 exits: *Mat x3) -9/Materials (discovered 1 exit: [*Sto]) History --------- Turn | Location | Event 34 | -11/Junkyard | Discovered new exit (range 16) 71 | -11/Junkyard | Entered Materials 267 | -10/Materials | Discovered new exit (range 4) 309 | -10/Materials | Build established: Mutant 458 | -10/Materials | Discovered new exit (range 11) 625 | -10/Materials | Lost 3 parts (1p1n1w) 958 | -10/Materials | Discovered new exit (range 7) 982 | -10/Materials | Core integrity fell below 50% 1075 | -10/Materials | Entered another Materials area 1075 | -9/Materials | Evolved 2 slots: Utility x2 1232 | -9/Materials | Lost 3 parts (1p1n1w) 1325 | -9/Materials | Destroyed 8 combat bots 1506 | -9/Materials | Build established: Scavenger-Mutant 1558 | -9/Materials | Discovered new exit (range 10) 1594 | -9/Materials | Self-destructed Last Messages --------------- 01432_ Matter Pump disabled. 01432_ Lgt. Armor Plating destroyed. 01435_ Critical hit (Burn: +37). 01436_ G-34 Mercenary destroyed. 01438_ Y-45 Defender destroyed. 01460_ System corrupted: Matter fused (-9). 01462_ Acquired Lgt. Armor Plating. 01466_ The unstable cave ceiling collapses. 01494_ Acquired 41 matter. 01496_ Sneak attack on O-16 Technician. 01496_ O-16 Technician destroyed. 01499_ Acquired 16 matter. 01506_ R-06 Scavenger collects Hover Unit. 01508_ The unstable cave ceiling collapses. 01510_ R-06 Scavenger collects Datajack. 01531_ System corrupted: Matter fused (-6). 01549_ Acquired Cooling System. 01550_ System corrupted: Heat flow error (+292). 01558_ EXIT=FOUND 01594_ System corrupted: Heat flow error (+121). Map ----- +----------------------------------------------------+ | | | | | | | | | | | | | | | | | | | | | | | | | | | | | | | | | | | | | ?????????????????????????????????????????????????? | | ?????????????????????????????????????????????????? | | ?????????????????????????????????????????????????? | | ????????????????############?????????????????????? | | ????????????????? w +?????????????????????? | | ???????????????????# #?????????????????????? | | ???????????????????# #?????????????????????? | | ???????????????????#w @ #?????????????????????? | | ???????????????????# ##### #????#+#??????????????? | | ????????????????????????## ##?? #????????????? | | ????????????????????????# ### #????????????? | | ????????????????????????# < #????????????? | | ????????????????????????# ### #????????????? | | ????????????????????????## ##?? ?????????????? | | ?????????????????????????# #???# #########?????? | | ?????????????????????????# #???# # #?????? | | ?????????????????????????# #???# # #?????? | | ?????????????????????????# #???# # #?????? | | ?????????????????????????# #???# # "" #?##??? | | ?????????????????????????# #???# # """ #? ??? | | ??????????????????????####+##### # S" #? """ | | ??????????????????????# # # #? """ | | ??????????????????????# # ## ##?# """ | | ??????????????????????# # * ### | | ??????????????????????# """ # # #] | | ??????????????????????# """"" + # | | ??????????????????????# """"" # # | | ????????????????????? + """"" ## # ## # #+ | | ?????????????????????## """ ## ### " | | ??????????????????????# ## #?## | | ????????????????????????######### #??# ^ | | ????????????????????????????????#+#??# " | +----------------------------------------------------+ Best States ------------- Heat Dissipation 38 Energy Generation 12 Energy Capacity 265 Matter Stores 300 Matter Capacity 300 Sight Range 16 Terrain Scan Density 10 Armor Coverage 150 Evasion (%) 40 Recoil Reduction 2 Item Schematics ----------------- None Robot Schematics ------------------ None Fabricated ------------ Nothing Alien Tech Used ----------------- None Achievements -------------- None Challenges ------------ None Game ------ Seed DirtySiegeRecalibrator Manual? 0 Play Time 00:08:33 Cumulative 449.2 hours Start 2023.04.14 @ 20:13:52 End 2023.04.14 @ 20:19:53 Sessions 1 Manual Loads 0 Difficulty Rogue Special Mode None Game No. 492 Rogue 483 Adventurer 8 Explorer 1 Win Type - Total 7 Types 4/1/2/0/0/0/0/0/0 Lore% 79 Gallery% 90 Achievement% 71 Wizard Run 0 Options --------- ASCII 0 Keyboard 0 Movement Numpad Keybinds 1 Fullscreen 2 Font 18/Terminus Map View 76x50 Tactical HUD 1 Map Filters NONE Filters NONE Steam 1 RUN: ccaa3380-0f1a-4edd-a134-ea810ae4d1f7